bitfinex/quotes_SOLUSD_20241122
["timestamp","ask_amount","ask_price","bid_price","bid_amount"]
[1732300001600,19.42194816,253.58,253.5,23.56384816]
[1732300001803,19.42194816,253.56,253.5,4.1419]
[1732300004622,19.42194816,253.54,253.48,1.1835]
[1732300005801,19.42194816,253.56,253.48,23.56424816]
[1732300006121,26.3207,253.62,253.48,23.56424816]
[1732300006122,23.36514816,253.6,253.5,19.42194816]
[1732300006300,23.776884,253.59,253.52,19.42194816]
[1732300006501,19.42194816,253.58,253.52,1.1833]
[1732300006807,19.42194816,253.56,253.48,2.9588]
[1732300007335,19.42194816,253.56,253.5,1.1834]
[1732300008541,19.42194816,253.56,253.44,20.0]
[1732300008542,19.42194816,253.54,253.47,1.1835]
[1732300008900,19.42194816,253.52,253.47,1.1835]
[1732300010527,19.42194816,253.54,253.47,1.1835]
[1732300010710,19.42194816,253.56,253.49,19.42194816]
[1732300010917,23.776884,253.59,253.51,19.42194816]
[1732300012325,19.42194816,253.58,253.51,19.42194816]
[1732300012529,23.36544816,253.58,253.51,20.60524816]
[1732300012709,19.42194816,253.56,253.49,23.56384816]
[1732300012910,19.42194816,253.56,253.49,2.9585]
[1732300013230,19.42194816,253.52,253.49,2.9585]
[1732300013430,19.42194816,253.52,253.46,1.1835]
[1732300013804,19.42194816,253.52,253.45,19.42194816]
[1732300014100,19.42194816,253.5,253.44,1.1836]
[1732300014299,19.42194816,253.47,253.42,2.9595]
[1732300014704,19.42194816,253.47,253.42,4.1433]
[1732300014924,19.42194816,253.51,253.44,19.42194816]
[1732300015122,19.42194816,253.53,253.46,19.42194816]
[1732300016214,19.42194816,253.53,253.47,1.1835]
[1732300016731,19.42194816,253.53,253.47,4.1424]
[1732300017833,19.42194816,253.49,253.42,22.38134816]
[1732300018345,23.36684816,253.49,253.42,23.56514816]
[1732300018519,23.36684816,253.49,253.42,22.38134816]
[1732300018730,23.36684816,253.49,253.37,2.9599]
[1732300018731,19.42194816,253.43,253.37,2.9599]
[1732300019035,19.42194816,253.41,253.37,2.9599]
[1732300019234,19.42194816,253.41,253.34,1.1841]
[1732300019607,23.776884,253.46,253.35,19.42194816]
[1732300019608,19.42194816,253.43,253.35,19.42194816]
[1732300019804,19.42194816,253.45,253.37,19.42194816]
[1732300020437,23.36724816,253.47,253.39,19.42194816]
[1732300020833,19.42194816,253.45,253.37,19.42194816]
[1732300022027,19.42194816,253.45,253.38,1.1839]
[1732300022622,23.36754816,253.45,253.38,1.1839]
[1732300023315,23.36724816,253.47,253.39,19.42194816]
[1732300023642,19.42194816,253.49,253.41,19.42194816]
[1732300024012,19.42194816,253.49,253.42,4.1433]
[1732300026012,19.42194816,253.44,253.37,2.96]
[1732300026212,19.42194816,253.44,253.37,4.144]
[1732300026826,19.42194816,253.46,253.38,19.42194816]
[1732300027516,19.42194816,253.48,253.4,19.42194816]
[1732300028625,19.42194816,253.46,253.38,19.42194816]
[1732300028823,19.42194816,253.44,253.37,2.96]
[1732300029024,19.42194816,253.42,253.37,2.96]
[1732300029425,19.42194816,253.4,253.37,2.96]
[1732300030124,19.42194816,253.4,253.35,1.1841]
[1732300030520,19.42194816,253.4,253.33,10.0656]
[1732300031339,19.42194816,253.4,253.33,4.1447]
[1732300031515,19.42194816,253.38,253.33,4.1447]
[1732300032744,19.42194816,253.34,253.28,2.961]
[1732300032948,19.42194816,253.32,253.28,2.961]
[1732300033435,19.7636,253.45,253.31,19.42194816]
[1732300033643,19.42194816,253.41,253.33,19.42194816]
[1732300033939,19.42194816,253.47,253.39,19.42194816]
[1732300034148,19.42194816,253.45,253.37,19.42194816]
[1732300034724,19.42194816,253.45,253.38,4.1438]
[1732300035443,19.42194816,253.43,253.38,4.1438]
[1732300036137,19.42194816,253.43,253.38,2.9599]
[1732300036640,12.12828559,253.44,253.38,2.9599]
[1732300037736,12.12828559,253.46,253.38,15.08818559]
[1732300038245,12.12828559,253.48,253.4,12.12828559]
[1732300038415,12.23743399,253.5,253.42,12.12828559]
[1732300039047,0.1091484,253.5,253.44,12.12828559]
[1732300039248,0.1091484,253.5,253.46,12.12828559]
[1732300040540,0.1091484,253.5,253.45,4.1427]
[1732300040737,12.23743399,253.5,253.45,4.1427]
[1732300041132,12.23743399,253.5,253.45,2.9591]
[1732300041332,12.12828559,253.48,253.43,1.1837]
[1732300042047,0.1091484,253.5,253.38,12.12828559]
[1732300042048,12.12828559,253.46,253.38,12.12828559]
[1732300043143,15.447,253.49,253.37,19.40351127]
[1732300043144,19.40351127,253.45,253.37,19.40351127]
[1732300043323,19.40351127,253.45,253.38,4.1438]
[1732300044253,19.40351127,253.41,253.38,2.9599]
[1732300044428,19.40351127,253.41,253.38,4.1438]
[1732300045552,19.40351127,253.41,253.34,4.1445]
[1732300046053,19.40351127,253.43,253.35,19.40351127]
[1732300046444,19.40351127,253.43,253.36,4.1442]
[1732300047326,19.40351127,253.45,253.37,19.40351127]
[1732300047544,19.40351127,253.47,253.37,19.40351127]
[1732300047741,19.40351127,253.47,253.39,19.40351127]
[1732300047944,19.40351127,253.49,253.41,19.40351127]
[1732300048470,19.40351127,253.47,253.39,19.40351127]
[1732300048637,19.40351127,253.43,253.4,2.9597]
[1732300049140,19.40351127,253.43,253.38,1.1839]
[1732300049448,19.40351127,253.39,253.35,2.9602]
[1732300050555,19.40351127,253.37,253.31,2.9607]
[1732300050733,19.40351127,253.35,253.31,2.9607]
[1732300051828,19.40351127,253.35,253.27,2.9612]
[1732300052342,19.40351127,253.35,253.28,19.40351127]
[1732300052550,19.40351127,253.39,253.3,19.40351127]
[1732300053840,19.40351127,253.39,253.31,4.145]
[1732300054452,19.40351127,253.41,253.32,19.40351127]
[1732300054657,19.40351127,253.41,253.34,19.40351127]
[1732300055044,19.40351127,253.38,253.32,19.40351127]
[1732300055358,19.40351127,253.38,253.31,4.145]
[1732300056439,19.40351127,253.36,253.31,4.145]
[1732300057446,19.40351127,253.36,253.31,2.9607]
[1732300057841,19.40351127,253.34,253.31,2.9607]
[1732300058167,19.40351127,253.36,253.31,2.9607]
[1732300058664,19.40351127,253.4,253.32,19.40351127]
[1732300058845,19.40351127,253.38,253.3,19.40351127]
[1732300059052,19.40351127,253.4,253.32,19.40351127]
[1732300060357,19.40351127,253.4,253.33,4.1447]
[1732300061562,19.40351127,253.38,253.33,4.1447]
[1732300062647,19.40351127,253.38,253.33,2.9605]
[1732300062848,19.40351127,253.34,253.28,2.961]
[1732300063057,19.40351127,253.32,253.28,2.961]
[1732300063364,19.40351127,253.3,253.24,2.9615]
[1732300063611,19.40351127,253.27,253.24,2.9615]
[1732300064749,12.14456554,253.27,253.24,2.9615]
[1732300065159,12.14456554,253.27,253.22,1.1847]
[1732300065359,12.14456554,253.25,253.2,2.962]
[1732300066265,12.14456554,253.23,253.2,2.962]
[1732300066948,12.14456554,253.24,253.2,2.962]
[1732300067164,3.9475,253.32,253.2,2.962]
[1732300067165,12.14456554,253.27,253.2,2.962]
[1732300067367,12.14456554,253.3,253.22,12.14456554]
[1732300067574,12.14456554,253.32,253.24,12.14456554]
[1732300068058,12.14456554,253.32,253.2,2.962]
[1732300068059,20.5474,253.35,253.28,12.14456554]
[1732300068371,12.14456554,253.37,253.3,16.28976554]
[1732300069445,16.09136554,253.37,253.3,4.1452]
[1732300069783,12.14456554,253.37,253.3,4.1452]
[1732300070645,19.41582768,253.37,253.3,4.1452]
[1732300071041,19.41582768,253.39,253.31,19.41582768]
[1732300072573,19.8554,253.48,253.37,19.41582768]
[1732300072775,19.41582768,253.45,253.37,19.41582768]
[1732300072944,19.41582768,253.43,253.35,19.41582768]
[1732300073151,19.41582768,253.37,253.32,2.9606]
[1732300073449,19.41582768,253.42,253.34,19.41582768]
[1732300073765,19.41582768,253.44,253.36,19.41582768]
[1732300073965,19.41582768,253.44,253.32,2.9606]
[1732300073966,19.41582768,253.42,253.34,19.41582768]
[1732300074171,19.41582768,253.4,253.32,19.41582768]
[1732300074355,19.41582768,253.38,253.3,22.17922768]
[1732300074750,19.41582768,253.42,253.32,19.41582768]
[1732300075181,19.41582768,253.4,253.32,19.41582768]
[1732300075972,19.41582768,253.4,253.33,2.7631]
[1732300076682,19.41582768,253.38,253.33,2.7631]
[1732300076853,19.41582768,253.36,253.33,1.9737]
[1732300077189,19.41582768,253.36,253.3,0.7895]
[1732300077387,19.41582768,253.34,253.3,0.7895]
[1732300077857,19.41582768,253.34,253.27,6.6664]
[1732300078055,19.41582768,253.32,253.28,0.7896]
[1732300078451,18.8044,253.42,253.28,0.7896]
[1732300078452,19.41582768,253.34,253.28,2.7636]
[1732300078671,19.41582768,253.36,253.28,22.17942768]
[1732300080368,17.79014768,253.36,253.28,22.17942768]
[1732300080662,19.41582768,253.35,253.28,2.7636]
[1732300081361,19.41582768,253.37,253.29,19.41582768]
[1732300081676,19.41582768,253.39,253.29,19.41582768]
[1732300082574,19.41582768,253.41,253.33,19.41582768]
[1732300082773,9.863,253.48,253.34,2.763]
[1732300082774,19.41582768,253.43,253.34,2.763]
[1732300082975,19.41582768,253.45,253.35,19.41582768]
[1732300083484,19.41582768,253.43,253.34,2.763]
[1732300083857,19.41582768,253.41,253.34,2.763]
[1732300084059,19.41582768,253.39,253.34,2.763]
[1732300085085,19.41582768,253.39,253.34,1.9736]
[1732300085592,19.41582768,253.43,253.35,19.41582768]
[1732300085791,19.41582768,253.45,253.37,19.41582768]
[1732300086284,15.7082,253.49,253.34,1.9736]
[1732300086285,19.41582768,253.47,253.39,19.41582768]
[1732300086873,19.41582768,253.45,253.37,19.41582768]
[1732300087188,19.41582768,253.42,253.38,2.7626]
[1732300087361,19.41582768,253.4,253.38,2.7626]
[1732300087684,19.41582768,253.39,253.34,2.763]
[1732300088465,19.41582768,253.38,253.34,2.763]
[1732300088767,19.41582768,253.35,253.3,2.7634]
[1732300088972,19.41582768,253.34,253.3,2.7634]
[1732300089173,19.41582768,253.34,253.3,1.9739]
[1732300090684,19.41582768,253.32,253.26,1.9742]
[1732300090884,12.13937226,253.3,253.26,2.7639]
[1732300091185,12.13937226,253.3,253.26,1.9742]
[1732300091363,12.13937226,253.28,253.23,0.7897]
[1732300091685,12.13937226,253.28,253.21,18.06307226]
[1732300091686,12.13937226,253.26,253.21,2.7643]
[1732300091891,12.13937226,253.25,253.21,2.7643]
[1732300092099,12.13937226,253.27,253.21,2.7643]
[1732300093172,12.13937226,253.29,253.21,14.90367226]
[1732300094792,12.13937226,253.33,253.25,12.13937226]
[1732300095107,17.38379109,253.34,253.25,12.13937226]
[1732300095388,12.13937226,253.34,253.25,12.13937226]
[1732300095569,12.13937226,253.36,253.29,12.13937226]
[1732300095765,12.13937226,253.34,253.25,12.13937226]
[1732300096376,12.13937226,253.32,253.25,12.13937226]
[1732300096780,12.13937226,253.32,253.26,2.7639]
[1732300097286,12.13937226,253.3,253.26,2.7639]
[1732300098695,12.13937226,253.3,253.22,2.7643]
[1732300099273,12.13937226,253.26,253.22,2.7643]
[1732300100470,12.13937226,253.26,253.22,1.9745]
[1732300101787,12.13937226,253.26,253.19,12.13937226]
[1732300101788,12.13937226,253.26,253.17,18.85397226]
[1732300102097,12.13937226,253.26,253.19,12.13937226]
[1732300103087,12.13937226,253.26,253.2,1.9747]
[1732300104300,12.13937226,253.21,253.15,1.975]
[1732300104477,12.13937226,253.19,253.15,2.765]
[1732300104802,12.13937226,253.18,253.13,0.7901]
[1732300105005,12.13937226,253.16,253.11,2.7655]
[1732300105297,12.13937226,253.12,253.11,1.9754]
[1732300106194,12.13937226,253.12,253.06,1.9757]
[1732300106374,12.13937226,253.11,253.06,1.9757]
[1732300107004,12.13937226,253.12,253.06,1.9757]
[1732300107800,12.13937226,253.08,253.03,0.7903]
[1732300108189,12.13937226,253.07,253.0,12.13937226]
[1732300109299,12.13937226,253.13,253.05,12.13937226]
[1732300110203,12.13937226,253.15,253.07,12.13937226]
[1732300110688,12.13937226,253.15,253.02,2.7665]
[1732300110689,12.13937226,253.14,253.06,12.13937226]
[1732300111095,5.1775696,253.2,253.08,12.13937226]
[1732300111406,12.13937226,253.12,253.05,12.13937226]
[1732300111603,12.13937226,253.13,253.06,12.13937226]
[1732300111977,12.13937226,253.15,253.09,12.13937226]
[1732300112302,12.13937226,253.16,253.08,12.13937226]
[1732300112599,19.49124621,253.24,252.96,32.11593365]
[1732300112600,21.2349,253.08,252.96,32.11593365]
[1732300112804,12.13937226,253.05,252.97,12.13937226]
[1732300113280,12.13937226,253.03,252.96,32.90653365]
[1732300113486,27.35237226,253.08,253.0,12.13937226]
[1732300113691,12.13937226,253.08,253.0,12.13937226]
[1732300113890,12.13937226,253.1,253.02,12.13937226]
[1732300114392,12.13937226,253.12,253.04,12.13937226]
[1732300114697,0.09367462,253.18,253.06,12.13937226]
[1732300114698,12.13937226,253.14,253.06,12.13937226]
[1732300115805,12.13937226,253.14,253.07,2.7659]
[1732300115988,12.23304688,253.18,253.1,12.13937226]
[1732300116594,12.13937226,253.16,253.1,12.13937226]
[1732300116777,0.09367462,253.18,253.07,2.7659]
[1732300116778,12.13937226,253.12,253.07,2.7659]
[1732300117177,12.13937226,253.1,253.07,1.9757]
[1732300117781,0.09367462,253.18,253.07,1.9757]
[1732300117782,12.13937226,253.08,253.07,1.9757]
[1732300117991,12.13937226,253.1,253.07,1.9757]
[1732300118408,12.13937226,253.12,253.07,1.9757]
[1732300118985,12.13937226,253.14,253.07,1.9757]
[1732300119801,12.13937226,253.16,253.07,14.11507226]
[1732300120510,12.13937226,253.16,253.09,12.13937226]
[1732300121906,12.13937226,253.16,253.07,1.9757]
[1732300121907,12.13937226,253.16,253.1,2.7657]
[1732300124002,12.13937226,253.13,253.1,2.7657]
[1732300125616,12.13937226,253.15,253.1,2.7657]
[1732300126213,12.13937226,253.17,253.1,14.90507226]
[1732300127093,12.13937226,253.17,253.1,2.7657]
[1732300127304,12.13937226,253.11,253.06,1.9758]
[1732300127505,12.13937226,253.09,253.0,12.13937226]
[1732300127714,12.13937226,253.11,253.04,12.13937226]
[1732300128089,12.13937226,253.11,253.05,2.7661]
[1732300128488,12.13937226,253.07,253.05,2.7661]
[1732300128989,3.9499,253.17,253.05,2.7661]
[1732300128990,12.13937226,253.09,253.05,2.7661]
[1732300129488,12.13937226,253.09,253.05,1.9758]
[1732300129822,12.13937226,253.11,253.05,1.9758]
[1732300130113,3.95,253.17,253.06,12.13937226]
[1732300130114,12.13937226,253.13,253.06,12.13937226]
[1732300131003,12.13937226,253.15,253.06,12.13937226]
[1732300131206,12.13937226,253.17,253.1,12.13937226]
[1732300131792,12.13937226,253.17,253.08,12.13937226]
[1732300132016,12.13937226,253.15,253.08,12.13937226]
[1732300132312,0.09367462,253.18,253.11,12.13937226]
[1732300132502,12.23304688,253.18,253.09,12.13937226]
[1732300132918,12.13937226,253.16,253.09,12.13937226]
[1732300133097,12.13937226,253.14,253.07,22.4007]
[1732300133617,12.13937226,253.12,253.07,6.7173]
[1732300133817,12.13937226,253.1,253.07,2.7659]
[1732300134024,12.13937226,253.1,253.07,1.9757]
[1732300134311,12.13937226,253.08,253.05,0.7903]
[1732300134812,12.13937226,253.08,253.03,2.7663]
[1732300135208,12.13937226,253.08,253.03,1.976]
[1732300135399,12.13937226,253.06,253.03,1.976]
[1732300136399,12.13937226,253.06,252.99,1.9763]
[1732300136595,12.13937226,253.06,252.99,14.11567226]
[1732300136906,12.13937226,253.06,252.99,1.9763]
[1732300137094,12.13937226,253.04,252.99,1.9763]
[1732300137420,12.13937226,253.06,252.99,1.9763]
[1732300138102,12.13937226,253.03,252.99,2.7668]
[1732300138816,12.13937226,253.0,252.96,32.11593365]
[1732300139023,12.13937226,253.0,252.96,34.88303365]
[1732300139225,23.776884,253.1,252.96,34.88303365]
[1732300139226,12.13937226,253.02,252.96,34.88303365]
[1732300140000,29.03583101,253.1,252.96,34.88303365]
[1732300140001,12.13937226,252.98,252.96,32.11593365]
[1732300140315,12.13937226,253.01,252.96,32.90653365]
[1732300140502,12.13937226,253.03,252.96,34.88303365]
[1732300140700,12.13937226,253.0,252.96,34.88303365]
[1732300141097,12.13937226,253.01,252.96,34.88303365]
[1732300141302,12.13937226,252.97,252.96,32.11593365]
[1732300142325,12.13937226,252.97,252.96,21.72752789]
[1732300143209,23.776884,252.96,252.85,1.9774]
[1732300143414,12.13937226,252.91,252.85,1.9774]
[1732300143597,27.31067226,252.98,252.85,1.9774]
[1732300143598,12.13937226,252.94,252.87,12.13937226]
[1732300143805,12.13937226,252.97,252.85,6.7232]
[1732300144020,12.13937226,252.96,252.85,6.7232]
[1732300144327,16.6493,253.04,252.94,12.13937226]
[1732300144509,12.13937226,253.03,252.96,12.13937226]
[1732300145609,12.13937226,253.0,252.92,12.13937226]
[1732300146025,12.13937226,253.0,252.93,2.7675]
[1732300146409,12.13937226,253.02,252.94,12.13937226]
[1732300146733,12.13937226,253.06,252.98,12.13937226]
[1732300147232,12.13937226,253.02,252.94,12.13937226]
[1732300147401,12.13937226,253.06,252.98,12.13937226]
[1732300147732,12.13937226,253.03,252.93,6.7211]
[1732300148031,12.13937226,253.05,252.97,12.13937226]
[1732300148324,12.13937226,253.05,252.98,2.7669]
[1732300148924,12.13937226,253.05,252.93,3.9536]
[1732300148925,12.13937226,253.0,252.94,0.7906]
[1732300149134,12.13937226,253.0,252.91,12.13937226]
[1732300149424,12.13937226,252.98,252.91,12.13937226]
[1732300149630,12.13937226,253.03,252.94,12.13937226]
[1732300149829,26.276884,253.08,252.94,12.13937226]
[1732300150009,12.13937226,252.99,252.92,12.13937226]
[1732300150207,12.13937226,252.99,252.93,0.7907]
[1732300151523,12.13937226,253.03,252.94,12.13937226]
[1732300152123,12.13937226,253.04,252.96,12.13937226]
[1732300152322,16.09027226,253.11,252.98,12.13937226]
[1732300152323,12.13937226,253.06,252.98,12.13937226]
[1732300152633,3.9509,253.11,252.93,6.7211]
[1732300152634,12.13937226,253.04,252.96,12.13937226]
[1732300153711,12.13937226,252.97,252.88,12.93017226]
[1732300154021,12.13937226,252.97,252.9,12.13937226]
[1732300154717,12.13937226,252.97,252.92,1.9768]
[1732300155028,12.13937226,252.99,252.92,14.11617226]
[1732300155330,12.13937226,252.97,252.92,1.9768]
[1732300155511,12.13937226,252.97,252.88,12.13937226]
[1732300155718,15.5394,253.0,252.87,2.768]
[1732300155719,12.13937226,252.95,252.87,2.768]
[1732300155919,12.13937226,252.93,252.87,2.768]
[1732300156235,12.13937226,252.91,252.87,2.768]
[1732300156808,12.13937226,252.93,252.87,1.9772]
[1732300158011,12.13937226,252.95,252.87,2.7681]
[1732300158213,12.13937226,252.91,252.84,15.7909]
[1732300158733,12.13937226,252.89,252.84,15.0]
[1732300159621,6.453,252.97,252.84,15.0]
[1732300159622,12.13937226,252.87,252.84,15.0]
[1732300160227,16.09397226,252.87,252.84,15.0]
[1732300160633,12.13937226,252.86,252.84,15.0]
[1732300161834,12.13937226,252.85,252.84,15.0]
[1732300163136,35.91625626,252.85,252.84,15.0]
[1732300165922,48.05562852,252.85,252.84,4.61967836]
[1732300167421,21.7453,252.88,252.84,4.61967836]
[1732300167629,21.7453,252.88,252.72,12.18019626]
[1732300167630,12.13937226,252.85,252.8,0.3955]
[1732300168139,12.13937226,252.85,252.79,0.9889]
[1732300168848,12.13937226,252.8,252.74,0.9891]
[1732300169023,3.9546,252.87,252.74,0.9891]
[1732300169024,12.13937226,252.79,252.74,0.9891]
[1732300169230,12.13937226,252.8,252.74,0.9891]
[1732300169942,12.13937226,252.78,252.72,0.040824]
[1732300170126,12.13937226,252.78,252.39,19.91527819]
[1732300170127,12.13937226,252.73,252.6,0.3958]
[1732300170334,12.13937226,252.72,252.65,12.13937226]
[1732300170534,12.13937226,252.73,252.66,12.13937226]
[1732300170940,12.13937226,252.73,252.6,0.3958]
[1732300170941,12.13937226,252.72,252.65,12.13937226]
[1732300171333,12.13937226,252.72,252.64,12.13937226]
[1732300171543,12.13937226,252.7,252.63,12.13937226]
[1732300171735,12.13937226,252.71,252.63,12.13937226]
[1732300172131,12.13937226,252.66,252.59,1.3855]
[1732300172343,12.13937226,252.66,252.59,13.52487226]
[1732300172524,12.13937226,252.67,252.59,13.52487226]
[1732300172725,12.13937226,252.65,252.59,1.3855]
[1732300173335,12.13937226,252.66,252.59,13.52487226]
[1732300173541,12.13937226,252.67,252.6,12.13937226]
[1732300173731,12.13937226,252.69,252.59,1.3855]
[1732300173944,12.13937226,252.67,252.6,12.13937226]
[1732300174150,12.13937226,252.7,252.63,12.13937226]
[1732300174348,12.13937226,252.72,252.65,12.13937226]
[1732300174549,12.13937226,252.7,252.63,12.13937226]
[1732300174759,12.13937226,252.7,252.63,10.13937226]
[1732300175056,12.13937226,252.71,252.64,12.13937226]
[1732300175229,12.13937226,252.7,252.63,12.13937226]
[1732300175432,12.13937226,252.67,252.6,1.3855]
[1732300175659,12.13937226,252.69,252.61,12.13937226]
[1732300176188,12.13937226,252.69,252.6,1.3855]
[1732300176189,12.13937226,252.67,252.6,1.3855]
[1732300176448,12.13937226,252.66,252.6,1.3855]
[1732300177528,3.9571,252.71,252.64,12.13937226]
[1732300177529,12.13937226,252.71,252.64,12.13937226]
[1732300177729,12.13937226,252.74,252.67,12.13937226]
[1732300177946,12.13937226,252.76,252.69,12.13937226]
[1732300178138,12.4916,252.81,252.61,6.0171]
[1732300178350,22.3804,252.81,252.61,6.0171]
[1732300178857,19.8804,252.81,252.61,6.0171]
[1732300179355,12.13937226,252.7,252.64,1.3853]
[1732300179546,12.13937226,252.68,252.64,1.3853]
[1732300179946,12.13937226,252.65,252.62,0.3958]
[1732300180265,12.13937226,252.67,252.62,1.3854]
[1732300180450,12.13937226,252.68,252.62,1.3854]
[1732300180859,12.13937226,252.66,252.58,0.0488258]
[1732300181160,12.13937226,252.66,252.59,12.53517226]
[1732300181336,12.13937226,252.66,252.59,0.9897]
[1732300183358,12.13937226,252.66,252.59,1.3855]
[1732300183760,12.13937226,252.65,252.59,1.3855]
[1732300184163,12.13937226,252.66,252.59,13.52487226]
[1732300184344,12.13937226,252.66,252.59,12.13937226]
[1732300184540,3.9563,252.76,252.65,12.13937226]
[1732300184739,12.13937226,252.7,252.63,12.13937226]
[1732300185047,12.13937226,252.68,252.61,12.13937226]
[1732300185465,12.13937226,252.67,252.59,12.13937226]
[1732300186151,12.13937226,252.66,252.59,12.13937226]
[1732300186345,12.13937226,252.67,252.6,13.52487226]
[1732300186551,12.13937226,252.64,252.6,0.9897]
[1732300186760,12.13937226,252.72,252.6,0.9897]
[1732300186761,12.13937226,252.65,252.6,0.9897]
[1732300187661,12.13937226,252.67,252.6,12.13937226]
[1732300187865,12.13937226,252.65,252.58,12.18819806]
[1732300188067,12.13937226,252.66,252.59,12.13937226]
[1732300188965,12.13937226,252.65,252.58,12.18819806]
[1732300189162,16.09717226,252.67,252.6,12.13937226]
[1732300189561,12.13937226,252.66,252.59,12.53517226]
[1732300190565,12.13937226,252.65,252.58,12.13937226]
[1732300190872,12.13937226,252.66,252.59,12.13937226]
[1732300191248,12.13937226,252.62,252.55,1.3858]
[1732300192062,12.13937226,252.72,252.61,12.13937226]
[1732300192276,12.13937226,252.7,252.63,12.13937226]
[1732300192563,3.9561,252.77,252.62,12.13937226]
[1732300192761,12.13937226,252.69,252.62,12.13937226]
[1732300193352,5.13757029,252.78,252.62,12.13937226]
[1732300193353,12.13937226,252.7,252.62,12.13937226]
[1732300193553,12.13937226,252.72,252.65,12.13937226]
[1732300193767,12.13937226,252.74,252.67,12.13937226]
[1732300194266,12.13937226,252.72,252.64,12.13937226]
[1732300194477,12.13937226,252.73,252.65,12.13937226]
[1732300194654,12.13937226,252.72,252.64,12.13937226]
[1732300195054,12.13937226,252.71,252.63,12.13937226]
[1732300195559,12.13937226,252.69,252.64,0.9895]
[1732300195758,12.13937226,252.69,252.64,1.3853]
[1732300195956,12.13937226,252.71,252.64,1.3853]
[1732300196259,12.13937226,252.73,252.65,12.13937226]
[1732300196560,13.846,252.78,252.64,1.3853]
[1732300196752,12.13937226,252.73,252.66,0.3957]
[1732300196951,12.13937226,252.73,252.66,1.3851]
[1732300197153,12.13937226,252.73,252.66,13.52447226]
[1732300197973,12.13937226,252.74,252.67,12.13937226]
[1732300198552,12.13937226,252.73,252.66,13.52447226]
[1732300198871,12.13937226,252.76,252.68,12.13937226]
[1732300199073,12.13937226,252.77,252.7,12.13937226]
[1732300199272,12.13937226,252.79,252.71,12.13937226]
[1732300199777,12.13937226,252.78,252.71,12.13937226]
[1732300200166,12.13937226,252.78,252.72,1.3848]
[1732300200370,12.13937226,252.83,252.76,12.13937226]
[1732300200557,3.9548,252.86,252.76,12.13937226]
[1732300200753,12.13937226,252.83,252.76,12.13937226]
[1732300200975,12.13937226,252.83,252.75,12.13937226]
[1732300201777,12.13937226,252.84,252.76,13.52397226]
[1732300202080,12.13937226,252.85,252.77,12.13937226]
[1732300202267,6.3256,252.91,252.81,12.13937226]
[1732300202268,12.13937226,252.88,252.81,12.13937226]
[1732300202582,12.13937226,252.91,252.83,12.13937226]
[1732300202879,12.13937226,252.91,252.84,12.13937226]
[1732300203078,12.13937226,252.92,252.84,12.13937226]
[1732300203256,3.9527,252.99,252.77,16.158]
[1732300203257,12.13937226,252.93,252.86,12.13937226]
[1732300203676,12.13937226,252.93,252.85,12.13937226]
[1732300203878,12.13937226,252.93,252.86,13.52337226]
[1732300204059,16.0397,253.0,252.86,13.52337226]
[1732300204060,12.13937226,252.96,252.88,12.13937226]
[1732300204368,12.13937226,252.98,252.91,12.13937226]
[1732300204574,12.13937226,252.98,252.86,1.384]
[1732300204575,12.13937226,252.97,252.9,12.13937226]
[1732300204773,14.18543508,253.01,252.93,12.13937226]
[1732300205095,24.24424657,253.14,252.96,12.13937226]
[1732300205391,12.13937226,252.99,252.93,15.0786]
[1732300205554,12.13937226,253.01,252.93,27.21797226]
[1732300205754,12.13937226,253.02,252.95,12.13937226]
[1732300205958,12.13937226,253.03,252.96,13.52287226]
[1732300206968,12.13937226,252.99,252.96,0.9882]
[1732300207262,12.13937226,252.97,252.91,0.9884]
[1732300207462,12.13937226,252.95,252.91,0.9884]
[1732300207971,12.13937226,253.0,252.91,0.9884]
[1732300208168,12.13937226,253.05,252.91,0.9884]
[1732300208373,12.13937226,253.05,252.98,12.13937226]
[1732300209081,3.951,253.1,252.95,12.13937226]
[1732300209082,12.13937226,253.03,252.95,12.13937226]
[1732300209389,12.13937226,253.02,252.94,12.13937226]
[1732300209561,12.13937226,252.98,252.91,13.52307226]
[1732300209760,12.13937226,252.97,252.91,1.3837]
[1732300210158,12.13937226,252.99,252.92,12.13937226]
[1732300210464,12.13937226,252.97,252.91,1.3837]
[1732300210663,12.13937226,252.99,252.92,12.13937226]
[1732300211169,12.13937226,253.03,252.95,12.13937226]
[1732300211373,12.13937226,253.04,252.97,12.13937226]
[1732300212474,12.13937226,253.04,252.98,1.3834]
[1732300212884,12.13937226,253.0,252.98,0.9882]
[1732300213184,12.13937226,253.02,252.98,1.3834]
[1732300213571,12.13937226,253.0,252.98,1.3834]
[1732300213974,12.13937226,253.0,252.98,0.9882]
[1732300214176,12.13937226,253.11,252.94,0.3953]
[1732300214177,12.13937226,252.99,252.94,0.3953]